Cogmind - Beta 13 X1 @@@ ROGUE MODE // 2023.07.12 @ 08:37:01 Player: maxwell Result: Smashed by cave-in Performance ------------- Evolutions (0) 0 Regions Visited (1) 200 Robots Destroyed (26) 130 Value Destroyed (396) 396 Prototype IDs (0) 0 Alien Tech Used (0) 0 Bonus (0) 0 TOTAL SCORE: 726 Bonus ------- None Cogmind --------- Core Integrity 0/250 Matter 115/300 Energy 250/250 System Corruption 4% Temperature Cool (0) Movement Treading (240) Ox1 Location -10/Materials Parts ------- > --- POWER (1) -------- Ion Engine > --- PROPULSION (2) --- Light Treads > --- UTILITY (2) ------ Large Storage Unit > --- WEAPON (2) ------- Assault Rifle > --- INVENTORY (15) --- Ion Engine Light Treads Light Treads Aluminum Leg Aluminum Leg Wheel Compact Wheel Hacking Suite Small Laser Grenade Launcher Heavy Hammer Peak State ------------ > --- POWER ------------ Ion Engine > --- PROPULSION ------- Light Treads Light Treads > --- UTILITY ---------- Medium Storage Unit Improved Targeting Computer > --- WEAPON ----------- Assault Rifle Assault Rifle > --- INVENTORY -------- Ion Engine Aluminum Leg Aluminum Leg Wheel Compact Wheel Small Laser Grenade Launcher Grenade Launcher Heavy Hammer [Rating: 9] Favorites ----------- Power Ion Engine Engine Ion Engine Propulsion Light Treads Treads Light Treads Leg Aluminum Leg Utility Improved Targeting Computer Storage Large Storage Unit Processor Improved Targeting Computer Weapon Assault Rifle Ballistic Gun Assault Rifle Launcher Grenade Launcher Build | -11 -10 ------- Run | Jun Mat Slots Evolved . | . . Power . | . . Propulsion . | . . Utility . | . . Weapon . | . . Parts Attached 8 | . 8 Power . | . . Engine . | . . Core . | . . Reactor . | . . Propulsion 2 | . 2 Treads 2 | . 2 Leg . | . . Wheel . | . . Hover . | . . Flight . | . . Utility 3 | . 3 Device . | . . Storage 2 | . 2 Processor 1 | . 1 Hackware . | . . Protection . | . . Artifact . | . . Weapon 3 | . 3 Energy Gun . | . . Energy Cannon . | . . Ballistic Gun 1 | . 1 Ballistic Cannon . | . . Launcher 2 | . 2 Special Weapon . | . . Impact Weapon . | . . Slashing Weapon . | . . Piercing Weapon . | . . Special Melee Weapon . | . . Unidentified Prototypes . | . . Parts Lost 4 | . 4 Power . | . . Propulsion 1 | . 1 Utility 1 | . 1 Weapon 2 | . 2 Highest Loss Streak 3 | . 3 To Critical Strikes . | . . Average Slot Usage (%) 92 | . 92 Engine 14 | . 14 Treads 20 | . 20 Leg 1 | . 1 Storage 14 | . 14 Processor 13 | . 13 Ballistic Gun 24 | . 24 Launcher 3 | . 3 Naked Turns . | . . Heaviest Build 30 | 14 30 Greatest Support 40 | 20 40 Greatest Overweight (x) 1 | . 1 Average Overweight (x) . | . . Largest Inventory Capacity 15 | . 15 Average Capacity 12 | . 12 Most Carried 12 | . 12 Average Carried 9 | . 9 Final Capacity 15 | 8 15 Final Carried 11 | 6 11 Class Distribution -------------------- 100% | Mutant Dominant Class ---------------- Mutant | -10/Materials Resources | -11 -10 ----------- Run | Jun Mat Matter Collected 363 | 200 163 Remotely . | . . Salvage Created 448 | . 448 Parts 45 | . 45 Haulers Intercepted 1 | . 1 Recyclers Shooed 1 | . 1 Parts Field Recycled . | . . Retrieved Matter . | . . Parts Self-Destructed . | . . Prevented . | . . Kills | -11 -10 ------- Run | Jun Mat Combat Hostiles Destroyed 17 | . 17 Guns 8 | . 8 AOE 9 | . 9 Classes Destroyed 7 | . 7 Worker 3 | . 3 Builder 2 | . 2 Hauler 1 | . 1 Operator 1 | . 1 Watcher 2 | . 2 Swarmer 12 | . 12 Grunt 5 | . 5 Best Kill Streak 9 | . 9 Combat Bots Only 6 | . 6 Max Kills in Single Turn 3 | . 3 Gunslinging . | . . Exploded 3 | . 3 Melee . | . . Uniques/NPCs Destroyed . | . . Combat | -11 -10 -------- Run | Jun Mat Damage Taken 1092 | . 1092 Core 296 | . 296 Absorbed by Shields . | . . Core Remaining (%) 100 | 100 . Volleys Fired 43 | . 43 Largest 2 | . 2 Hottest 40 | . 40 Shots Fired 76 | . 76 Gun 66 | . 66 Cannon . | . . Launcher 10 | . 10 Special . | . . Kinetic 66 | . 66 Thermal . | . . Explosive 10 | . 10 Electromagnetic . | . . Robot Hit Streak 9 | . 9 Robot Miss Streak 3 | . 3 Penetration Max . | . . Secondary Targets 1 | . 1 Max Gunslinging Chain 1 | . 1 Shots Hit Robots 41 | . 41 Core Hits 41 | . 41 Critical Kills 1 | . 1 Critical Parts Destroyed . | . . Critical Strikes 1 | . 1 Destroy 1 | . 1 Melee Attacks . | . . Impact . | . . Slashing . | . . Piercing . | . . Sneak Attacks . | . . Combat Hostiles . | . . Follow-up Attacks . | . . Damage Inflicted 1332 | . 1332 Guns 542 | . 542 Cannons . | . . Explosions 772 | . 772 Melee . | . . Ramming 18 | . 18 Kinetic 542 | . 542 Thermal . | . . Explosive 701 | . 701 Electromagnetic 71 | . 71 Impact . | . . Slashing . | . . Piercing . | . . Highest Corruption . | . . Average Corruption . | . . Corruption Purged . | . . Corruption Blocked . | . . Overload Shots . | . . Overflow Damage 10 | . 10 Projectiles . | . . Explosions 10 | . 10 Melee . | . . Knockbacks . | . . Impact . | . . Kinetic . | . . Secondary . | . . Self-Inflicted Damage 103 | . 103 Shots 5 | . 5 Rammed 3 | . 3 Targets Rammed 3 | . 3 Kicked . | . . Crushed . | . . Highest Temperature 21 | . 21 Average Temperature 6 | . 6 Received Heat Transfer 180 | . 180 Siege Activations . | . . Robots Corrupted . | . . Combat Hostiles . | . . Parts Fried 2 | . 2 Impact Corruptions . | . . Robots Melted . | . . Combat Hostiles . | . . Parts Melted . | . . Heat Transferred . | . . Parts Sabotaged . | . . Parts Stolen . | . . Parts Stripped . | . . Power Chain Reactions . | . . Missiles Intercepted . | . . Alert | -11 -10 ------- Run | Jun Mat Peak Influence 432 | . 432 Initial . | . . Average 148 | . 148 Maximum Alert Level 2 | . 2 Low Security (%) 68 | . 68 Level 1 30 | . 30 Level 2 1 | . 1 Level 3 . | . . Level 4 . | . . Level 5 . | . . High Security . | . . Max Security . | . . Squads Dispatched 3 | . 3 Investigation 1 | . 1 Extermination . | . . Reinforcement 2 | . 2 Assault . | . . Garrison . | . . Intercept . | . . Searches Triggered . | . . Construction Impeded . | . . Haulers Reinforced . | . . Active Scanning Responses . | . . Cargo Convoy Interrupts . | . . Stealth | -11 -10 --------- Run | Jun Mat Distress Signals . | . . Communications Jammed . | . . Distress Signals . | . . Times Spotted 26 | . 26 Peak Tracking Total 6 | . 6 Tactical Retreats 2 | . 2 Traps | -11 -10 ------- Run | Jun Mat Traps Triggered 2 | . 2 Indirectly . | . . Trap Hack Attempts . | . . Triggered . | . . Disarmed . | . . Reprogrammed . | . . Reused . | . . Traps Extracted . | . . Installed . | . . Triggered . | . . Machines | -11 -10 ---------- Run | Jun Mat Machines Disabled 3 | . 3 Max in Single Turn 2 | . 2 Machines Repaired . | . . Machines Sabotaged . | . . Overloaded Fab Kills . | . . Hacking | -11 -10 --------- Run | Jun Mat Machines Accessed 5 | . 5 Terminals 5 | . 5 Fabricators . | . . Repair Stations . | . . Recycling Units . | . . Scanalyzers . | . . Garrison Access . | . . Total Hacks 17 | . 17 Successful 7 | . 7 Failed 10 | . 10 Catastrophic . | . . Database Lockouts . | . . Manual 17 | . 17 Terminals 17 | . 17 Fabricators . | . . Repair Stations . | . . Recycling Units . | . . Scanalyzers . | . . Garrison Access . | . . Terminal Hacks 3 | . 3 Robot Analysis 1 | . 1 Terminal Index 2 | . 2 Fabricator Hacks . | . . Repair Station Hacks . | . . Recycling Unit Hacks . | . . Scanalyzer . | . . Garrison Access Hacks . | . . Unauthorized Hacks 4 | . 4 Terminals 4 | . 4 Botnet 4 | . 4 Fabricators . | . . Repair Stations . | . . Recycling Units . | . . Scanalyzers . | . . Garrison Access . | . . Data Cores Recovered . | . . Used . | . . Hacking Detections 5 | . 5 Full Trace Events . | . . Feedback Events . | . . Feedback Blocked . | . . Robot Schematics Acquired . | . . Robots Built . | . . Authchips . | . . Time . | . . Total Robot Build Rating . | . . Part Schematics Acquired . | . . Parts Built . | . . Authchips . | . . Time . | . . Total Part Build Rating . | . . Parts Repaired . | . . Time . | . . Parts Recycled . | . . Recycled Matter . | . . Retrieved Matter . | . . Retrieved Components . | . . Parts Scanalyzed . | . . Part Schematics Acquired . | . . Parts Damaged . | . . Bothacking | -11 -10 ------------ Run | Jun Mat Used RIF Installer . | . . Robots Hacked . | . . Non-combat . | . . Combat . | . . Robot Hacks Applied . | . . Relay Couplers Released . | . . Fabnet Peak Effective % . | . . Robots Rewired . | . . Allies Hacked . | . . Hacks Repelled . | . . Allies | -11 -10 -------- Run | Jun Mat Total Allies . | . . Largest Group . | . . Highest-Rated Group . | . . Highest-Rated Ally . | . . Total Orders . | . . Ally Attacks . | . . Total Damage . | . . Kills . | . . Allies Corrupted . | . . Allies Melted . | . . Intel | -11 -10 ------- Run | Jun Mat Robot Analysis Total 1 | . 1 Derelict Logs Recovered . | . . Drone Launches . | . . Drone Recoveries . | . . Exploration | -11 -10 ------------- Run | Jun Mat Turns Passed 726 | . 726 Spaces Moved 312 | 1 311 Core . | . . Treads 282 | . 282 Legs 30 | 1 29 Wheels . | . . Hover . | . . Flight . | . . Fastest Speed 120 | 120 120 Average Speed 183 | 120 184 Slowest Speed 240 | 120 240 Overloaded Moves . | . . Propulsion Burnouts . | . . Robots Hopped . | . . Cave-ins Triggered 1 | . 1 Exploration Rate (%) 35 | 2 68 Regions Visited 1 Branch Regions . Pre-discovered Areas . | . . Known Exits Taken . | . . Unknown Exits Taken 1 | 1 . Scrap Searched . | . . Spaces Dug 13 | . 13 Terrain Destroyed 46 | . 46 Melee . | . . Projectile . | . . AOE 46 | . 46 Terrain Rammed . | . . Walls Destroyed . | . . Machines Disabled . | . . Actions | -11 -10 --------- Run | Jun Mat Total 387 | . 387 Wait 14 | . 14 Move 311 | . 311 Hop . | . . Pick Up 6 | . 6 Fast Attach 1 | . 1 Attach 1 | . 1 Detach . | . . Swap 6 | . 6 Drop 2 | . 2 Fire 43 | . 43 Melee . | . . Ram . | . . Kick . | . . Crush 3 | . 3 Escape Stasis . | . . Rewire . | . . Trap . | . . Miscellaneous . | . . Route ------- -11/Junkyard -10/Materials (discovered 2 exits: [*Mat] / [*Min]) History --------- Turn | Location | Event 1 | -11/Junkyard | Discovered new exit (range 0) 1 | -11/Junkyard | Entered Materials 305 | -10/Materials | Build established: Mutant 350 | -10/Materials | Discovered new exit (range 5) 409 | -10/Materials | Core integrity fell below 50% 491 | -10/Materials | Discovered new exit (range 16) 700 | -10/Materials | Derelicts attacked the area 728 | -10/Materials | Crushed by falling debris 728 | -10/Materials | Smashed by cave-in Last Messages --------------- 00719_ U-05 Engineer lays Concrete. 00720_ Acquired 5 matter. 00720_ R-06 Scavenger inserts Weapon Shielding into recycling unit. 00720_ U-05 Engineer lays Concrete. 00721_ Neutrino Reactor explodes. 00721_ Terrain Scan Processor fried. 00721_ Structural Scanner fried. 00721_ U-05 Engineer destroyed. 00721_ Recycling Unit disabled. 00721_ Aluminum Leg tumbles out of recycling unit. 00721_ Emergency Access malfunctions. 00722_ K-01 Serf collects debris. 00726_ U-05 Engineer builds a Wall. 00727_ K-01 Serf collects debris. 00728_ The unstable cave ceiling collapses. 00728_ Crushed by falling debris. 00728_ Grenade Launcher destroyed. 00728_ System corrupted by crushing effect (+2). 00728_ Imp. Targeting Computer destroyed. 00728_ System corrupted by crushing effect (+2). Map ----- +----------------------------------------------------+ | ????????? #### #?????????? | | #???????????## ^ #?######### | | ???????????### """ #?# ? | | ???????????#"" """ #?# " # | | ???????????#"T " ^ #?# """ # | | ???????????#"" ^ ###! "" # | | ???????????# # * ^ # """ # | | ????###????# # + "" # | | ?? ### #%! ^ # """ # | | ?? = ! !! ########## # """ # | | ? < !! ##########!# """ # | | ?? # !##!# " ? | | ?#" "##### + "T" ##!# ? | | ??" |"| ?????# " # !## ######### | | ??"?"""??????# T ###+######!#???????? | | ?????????????# " #####!####????? | | ?????????????# ! #????? | | ?????????????# #????? | | ?????????????# ###+#### #????? | | ?????????????# ## + #????? | | ???????????? ## ""# ###########????? | | ??????????? ## == # #??????????????? | | ?????????? ## [= # #??????????????? | | ?????????#########?# #u##?????????????? | | ???????????????????#= [ # ##????????????? | | ???????????????????#%= %@% #????????????? | | ???????????????????#! #????????????? | | ???????????????????# #????????????? | | ????????????????? / k#????????????? | | ???????????????" !|# * # #????????????? | | ?????????????? !|# u=%!# #????????????? | | ?????????????##+##?###+### #????????????? | | ?????????????????????? ??? ????????????? | | ?????????????????????????? ???????????? | | ?????????????????????????? ??????????? | | ??????????????????????????###+##??????????? | | ??????????????????????????????????????????? | | ??????????????????????????????????????????? | | ??????????????????????????????????????????? | | ??????????????????????????????????????????? | | ??????????????????????????????????????????? | | ??????????????????????????????????????????? | | ??????????????????????????????????????????? | | ??????????????????????????????????????????? | | ??????????????????????????????????????????? | | ??????????????????????????????????????????? | | ??????????????????????????????????????????? | | ??????????????????????????????????????????? | | ??????????????????????????????????????????? | | | +----------------------------------------------------+ Best States ------------- Heat Dissipation 25 Energy Generation 10 Energy Capacity 250 Matter Stores 300 Matter Capacity 300 Sight Range 16 Terrain Scan Density 10 Evasion (%) 50 Targeting Accuracy 6 Recoil Reduction 2 Item Schematics ----------------- None Robot Schematics ------------------ None Fabricated ------------ Nothing Alien Tech Used ----------------- None Achievements -------------- None Challenges ------------ None Game ------ Seed HeartSiegeFilter Manual? 0 Play Time 00:03:21 Cumulative 370.9 hours Start 2023.07.09 @ 05:25:32 End 2023.07.12 @ 08:37:01 Sessions 3 Manual Loads 0 Difficulty Rogue Special Mode None Game No. 544 Rogue 517 Adventurer 4 Explorer 23 Win Type - Total 20 Types 14/0/2/2/1/0/0/1/0 Lore% 81 Gallery% 91 Achievement% 83 Wizard Run 0 Options --------- ASCII 0 Keyboard 1 Movement Numpad Keybinds 0 Fullscreen 1 Font 18/SmallcapsGlow Map View 76x50 Tactical HUD 1 Map Filters NONE Filters NONE Steam 1 RUN: 5a82a3bd-6d97-4318-8189-67dd3ecf8f1d